[Event "Late-Titled-Tuesday-Blitz-April-02-2024"]
[Site "Chess.com"]
[Date "2024.04.02"]
[Round "6"]
[White "martinez_95"]
[Black "N_I_Chess"]
[Result "1-0"]
[WhiteElo "2162"]
[BlackElo "2355"]
[TimeControl "180+1"]
[EndTime "15:05:04 PDT"]
[Termination "martinez_95 won by checkmate"]

1. e4 {[%clk 0:02:41.5]} 1... Nf6 {[%clk 0:03:00.1]} 2. Nc3 {[%clk 0:02:40]}
2... d5 {[%clk 0:02:59.5]} 3. d3 {[%clk 0:02:39.1]} 3... dxe4 {[%clk 0:02:59.1]}
4. dxe4 {[%clk 0:02:40]} 4... Qxd1+ {[%clk 0:02:59.8]} 5. Kxd1 {[%clk
0:02:40.9]} 5... e5 {[%clk 0:02:51]} 6. Bg5 {[%clk 0:02:39.5]} 6... Nbd7 {[%clk
0:02:46.5]} 7. Bc4 {[%clk 0:02:37.5]} 7... c6 {[%clk 0:02:42.6]} 8. Nf3 {[%clk
0:02:35.4]} 8... Bd6 {[%clk 0:02:39.8]} 9. Ke2 {[%clk 0:02:35.5]} 9... h6 {[%clk
0:02:27.4]} 10. Bh4 {[%clk 0:02:30]} 10... O-O {[%clk 0:02:15.3]} 11. Rad1
{[%clk 0:02:28.8]} 11... Bc7 {[%clk 0:02:15.6]} 12. Bg3 {[%clk 0:02:26.4]} 12...
Nh5 {[%clk 0:02:05.5]} 13. Nh4 {[%clk 0:02:22]} 13... a5 {[%clk 0:01:42.4]} 14.
a4 {[%clk 0:02:20.8]} 14... Nc5 {[%clk 0:01:35.7]} 15. Nf5 {[%clk 0:01:26.6]}
15... Bxf5 {[%clk 0:01:29.8]} 16. exf5 {[%clk 0:01:27.5]} 16... Rad8 {[%clk
0:01:24.1]} 17. f3 {[%clk 0:01:24.3]} 17... Nxg3+ {[%clk 0:01:19]} 18. hxg3
{[%clk 0:01:23.8]} 18... Rd4 {[%clk 0:01:14.4]} 19. Ba2 {[%clk 0:01:03]} 19...
Rb4 {[%clk 0:00:56.8]} 20. b3 {[%clk 0:00:25.3]} 20... e4 {[%clk 0:00:48.1]} 21.
f4 {[%clk 0:00:20.5]} 21... Bd8 {[%clk 0:00:35.1]} 22. Bb1 {[%clk 0:00:20]}
22... Bf6 {[%clk 0:00:33.2]} 23. Na2 {[%clk 0:00:19.7]} 23... Rb6 {[%clk
0:00:33.7]} 24. g4 {[%clk 0:00:17.8]} 24... Re8 {[%clk 0:00:31.3]} 25. Rh5
{[%clk 0:00:16.8]} 25... Bb2 {[%clk 0:00:10.9]} 26. g5 {[%clk 0:00:12.6]} 26...
Ra6 {[%clk 0:00:08.1]} 27. f6 {[%clk 0:00:10.9]} 27... gxf6 {[%clk 0:00:07.4]}
28. gxh6 {[%clk 0:00:09.4]} 28... Kh7 {[%clk 0:00:06.6]} 29. Rxc5 {[%clk
0:00:08.7]} 29... Rg8 {[%clk 0:00:05.2]} 30. Kf1 {[%clk 0:00:06.3]} 30... Raa8
{[%clk 0:00:04.8]} 31. Rd7 {[%clk 0:00:06.2]} 31... Raf8 {[%clk 0:00:05.1]} 32.
c3 {[%clk 0:00:04.9]} 32... Kxh6 {[%clk 0:00:03.9]} 33. Bxe4 {[%clk 0:00:04.8]}
33... Rg3 {[%clk 0:00:03.4]} 34. Bf3 {[%clk 0:00:04.5]} 34... Rg5 {[%clk
0:00:01.9]} 35. fxg5+ {[%clk 0:00:03.2]} 35... Kg7 {[%clk 0:00:02.7]} 36. Rxb7
{[%clk 0:00:03.9]} 36... f5 {[%clk 0:00:02.7]} 37. Rxf5 {[%clk 0:00:03.4]} 37...
Ba3 {[%clk 0:00:03.3]} 38. Bxc6 {[%clk 0:00:03.3]} 38... Bc1 {[%clk 0:00:04.2]}
39. Bd5 {[%clk 0:00:03.6]} 39... Bb2 {[%clk 0:00:03.6]} 40. Rfxf7+ {[%clk
0:00:04.5]} 40... Rxf7+ {[%clk 0:00:02.4]} 41. Rxf7+ {[%clk 0:00:05.4]} 41...
Kg6 {[%clk 0:00:03.3]} 42. Rb7 {[%clk 0:00:05.6]} 42... Kxg5 {[%clk 0:00:04.2]}
43. Rb5 {[%clk 0:00:05.9]} 43... Ba3 {[%clk 0:00:05.1]} 44. Rxa5 {[%clk
0:00:06.2]} 44... Kf4 {[%clk 0:00:05.9]} 45. Rb5 {[%clk 0:00:06.5]} 45... Ke3
{[%clk 0:00:06.1]} 46. b4 {[%clk 0:00:07.1]} 46... Kd2 {[%clk 0:00:05.7]} 47. a5
{[%clk 0:00:07.7]} 47... Bb2 {[%clk 0:00:05.1]} 48. a6 {[%clk 0:00:06.1]} 48...
Kc2 {[%clk 0:00:06]} 49. a7 {[%clk 0:00:06.4]} 49... Kb1 {[%clk 0:00:06.5]} 50.
a8=Q {[%clk 0:00:06.5]} 50... Ka1 {[%clk 0:00:07.4]} 51. Qg8 {[%clk 0:00:05]}
51... Kb1 {[%clk 0:00:08.3]} 52. Qg6+ {[%clk 0:00:04.9]} 52... Ka1 {[%clk
0:00:08.6]} 53. Bb3 {[%clk 0:00:03.5]} 53... Bc1 {[%clk 0:00:08.5]} 54. Qc2
{[%clk 0:00:03.5]} 54... Bb2 {[%clk 0:00:08.5]} 55. Nc1 {[%clk 0:00:02.6]} 55...
Bxc1 {[%clk 0:00:08.7]} 56. Ra5+ {[%clk 0:00:03.1]} 56... Ba3 {[%clk 0:00:08.3]}
57. Rxa3# {[%clk 0:00:03.7]} 1-0

[Event "Late-Titled-Tuesday-Blitz-April-02-2024"]
[Site "Chess.com"]
[Date "2024.04.02"]
[Round "6"]
[White "Polish_fighter3000"]
[Black "LiemLe"]
[Result "1-0"]
[WhiteElo "3170"]
[BlackElo "3032"]
[TimeControl "180+1"]
[EndTime "15:05:07 PDT"]
[Termination "Polish_fighter3000 won by resignation"]

1. d4 {[%clk 0:03:00.9]} 1... Nf6 {[%clk 0:02:59.6]} 2. c4 {[%clk 0:03:01.4]}
2... e6 {[%clk 0:03:00.1]} 3. Nf3 {[%clk 0:03:01.9]} 3... d5 {[%clk 0:02:58.8]}
4. Nc3 {[%clk 0:03:02.5]} 4... Nbd7 {[%clk 0:02:59.3]} 5. Qc2 {[%clk 0:03:01.5]}
5... Bb4 {[%clk 0:02:48.7]} 6. cxd5 {[%clk 0:02:54.2]} 6... exd5 {[%clk
0:02:49.6]} 7. Bg5 {[%clk 0:02:53.9]} 7... h6 {[%clk 0:02:34.8]} 8. Bh4 {[%clk
0:02:53.7]} 8... O-O {[%clk 0:02:29.9]} 9. a3 {[%clk 0:02:40.8]} 9... Bxc3+
{[%clk 0:02:26.1]} 10. Qxc3 {[%clk 0:02:41.7]} 10... c6 {[%clk 0:02:05.1]} 11.
Nd2 {[%clk 0:02:30.8]} 11... Ne4 {[%clk 0:01:45]} 12. Bxd8 {[%clk 0:02:25]}
12... Nxc3 {[%clk 0:01:44.7]} 13. Ba5 {[%clk 0:02:08]} 13... Ne4 {[%clk
0:01:26.4]} 14. Rc1 {[%clk 0:01:53]} 14... Nxd2 {[%clk 0:01:21.2]} 15. Bxd2
{[%clk 0:01:53.9]} 15... Nb6 {[%clk 0:01:20]} 16. b3 {[%clk 0:01:50.7]} 16...
Be6 {[%clk 0:01:11.7]} 17. f3 {[%clk 0:01:50.1]} 17... Rfd8 {[%clk 0:01:10.7]}
18. Kf2 {[%clk 0:01:47.6]} 18... Nc8 {[%clk 0:01:10.7]} 19. g4 {[%clk
0:01:29.7]} 19... Nd6 {[%clk 0:01:10.6]} 20. a4 {[%clk 0:01:28.9]} 20... Rac8
{[%clk 0:00:55]} 21. e3 {[%clk 0:01:21.3]} 21... b6 {[%clk 0:00:52.4]} 22. Ba6
{[%clk 0:01:18.1]} 22... Rc7 {[%clk 0:00:52.8]} 23. Bb4 {[%clk 0:01:11.7]} 23...
Bc8 {[%clk 0:00:52.9]} 24. Bd3 {[%clk 0:01:05.4]} 24... a5 {[%clk 0:00:37.9]}
25. Ba3 {[%clk 0:01:05.2]} 25... Nb7 {[%clk 0:00:37.8]} 26. Rc2 {[%clk
0:01:03.1]} 26... Bd7 {[%clk 0:00:34.3]} 27. Be7 {[%clk 0:00:35.6]} 27... Re8
{[%clk 0:00:26]} 28. Bh4 {[%clk 0:00:35.9]} 28... c5 {[%clk 0:00:26.6]} 29. Bg3
{[%clk 0:00:34.6]} 29... Rcc8 {[%clk 0:00:27.1]} 30. Ba6 {[%clk 0:00:29.4]}
30... Bc6 {[%clk 0:00:27.2]} 31. Rhc1 {[%clk 0:00:27]} 31... Re6 {[%clk
0:00:23.5]} 32. h4 {[%clk 0:00:23.4]} 32... Rce8 {[%clk 0:00:22.4]} 33. Bf4
{[%clk 0:00:21.4]} 33... f6 {[%clk 0:00:18.2]} 34. h5 {[%clk 0:00:20.7]} 34...
Kf8 {[%clk 0:00:15.7]} 35. Bxb7 {[%clk 0:00:19.6]} 35... Bxb7 {[%clk 0:00:16.6]}
36. dxc5 {[%clk 0:00:20]} 36... bxc5 {[%clk 0:00:17.5]} 37. Rxc5 {[%clk
0:00:20.4]} 37... Rb6 {[%clk 0:00:14.8]} 38. R1c3 {[%clk 0:00:17.1]} 38... Ra8
{[%clk 0:00:11.3]} 39. Rc7 {[%clk 0:00:15]} 39... d4 {[%clk 0:00:11]} 40. exd4
{[%clk 0:00:13.8]} 40... Bd5 {[%clk 0:00:11.7]} 41. Re3 {[%clk 0:00:08]} 41...
Re8 {[%clk 0:00:09.5]} 42. Rxe8+ {[%clk 0:00:05.1]} 42... Kxe8 {[%clk
0:00:10.4]} 43. Rc5 {[%clk 0:00:05.3]} 43... Bxb3 {[%clk 0:00:09]} 44. Rxa5
{[%clk 0:00:05.5]} 44... Rb4 {[%clk 0:00:09.5]} 45. Ra7 {[%clk 0:00:04.4]} 45...
Rxd4 {[%clk 0:00:07.9]} 46. Ke3 {[%clk 0:00:03.9]} 46... Rd7 {[%clk 0:00:06.9]}
47. Ra8+ {[%clk 0:00:04.2]} 47... Kf7 {[%clk 0:00:07.5]} 48. a5 {[%clk
0:00:04.1]} 48... Bd5 {[%clk 0:00:04.4]} 49. Rc8 {[%clk 0:00:04.3]} 49... Bb7
{[%clk 0:00:04]} 50. Rc5 {[%clk 0:00:03.8]} 50... Re7+ {[%clk 0:00:04.4]} 51.
Kf2 {[%clk 0:00:04.1]} 51... Ba6 {[%clk 0:00:05]} 52. Rc6 {[%clk 0:00:03.9]}
52... Re2+ {[%clk 0:00:05.2]} 53. Kg3 {[%clk 0:00:03.9]} 53... Re6 {[%clk
0:00:06.1]} 54. Rc7+ {[%clk 0:00:04.2]} 54... Re7 {[%clk 0:00:06.7]} 55. Rc3
{[%clk 0:00:04.8]} 55... Re6 {[%clk 0:00:03.3]} 56. Bc7 {[%clk 0:00:04]} 56...
g6 {[%clk 0:00:03]} 57. Bf4 {[%clk 0:00:02.3]} 57... gxh5 {[%clk 0:00:02.9]} 58.
gxh5 {[%clk 0:00:02.5]} 58... Re7 {[%clk 0:00:02.1]} 59. Rc6 {[%clk 0:00:02.4]}
59... Re6 {[%clk 0:00:02.7]} 60. Rxe6 {[%clk 0:00:02.6]} 60... Kxe6 {[%clk
0:00:03.6]} 61. Bxh6 {[%clk 0:00:03.1]} 61... Kf5 {[%clk 0:00:03.2]} 62. Bg7
{[%clk 0:00:03]} 62... Bb7 {[%clk 0:00:03.5]} 63. h6 {[%clk 0:00:02.6]} 63...
Kg6 {[%clk 0:00:04.4]} 64. f4 {[%clk 0:00:03.1]} 64... f5 {[%clk 0:00:04.5]} 65.
Kf2 {[%clk 0:00:03.7]} 65... Ba6 {[%clk 0:00:03.6]} 66. Ke3 {[%clk 0:00:04.4]}
66... Kh7 {[%clk 0:00:04.4]} 67. Kd4 {[%clk 0:00:05]} 67... Kg6 {[%clk 0:00:05]}
68. Kc5 {[%clk 0:00:05.7]} 1-0

[Event "Late-Titled-Tuesday-Blitz-April-02-2024"]
[Site "Chess.com"]
[Date "2024.04.02"]
[Round "6"]
[White "andrzej"]
[Black "DraningWaterHi"]
[Result "1-0"]
[WhiteElo "2478"]
[BlackElo "2290"]
[TimeControl "180+1"]
[EndTime "15:05:12 PDT"]
[Termination "andrzej won by resignation"]

1. e4 {[%clk 0:03:00.9]} 1... e5 {[%clk 0:02:59.2]} 2. Nf3 {[%clk 0:03:01.3]}
2... Nc6 {[%clk 0:02:57.5]} 3. Bb5 {[%clk 0:03:01.6]} 3... a6 {[%clk 0:02:53.9]}
4. Ba4 {[%clk 0:03:02.1]} 4... d6 {[%clk 0:02:53.1]} 5. O-O {[%clk 0:03:01.7]}
5... Bd7 {[%clk 0:02:52.9]} 6. c4 {[%clk 0:03:00.9]} 6... Nge7 {[%clk
0:02:52.7]} 7. Nc3 {[%clk 0:02:57.9]} 7... g6 {[%clk 0:02:53]} 8. d4 {[%clk
0:02:57.7]} 8... exd4 {[%clk 0:02:51.7]} 9. Nd5 {[%clk 0:02:52.4]} 9... Bg7
{[%clk 0:02:50]} 10. Bg5 {[%clk 0:02:52.8]} 10... O-O {[%clk 0:02:40.5]} 11.
Bxc6 {[%clk 0:02:51.2]} 11... f6 {[%clk 0:02:31.4]} 12. Bxd7 {[%clk 0:02:46.6]}
12... fxg5 {[%clk 0:02:29.4]} 13. Be6+ {[%clk 0:02:44.8]} 13... Kh8 {[%clk
0:02:28.6]} 14. Nxg5 {[%clk 0:02:45.3]} 14... Nxd5 {[%clk 0:02:28.8]} 15. Nf7+
{[%clk 0:02:34.3]} 15... Rxf7 {[%clk 0:02:28.8]} 16. Bxf7 {[%clk 0:02:35.2]}
16... Nf6 {[%clk 0:02:25.7]} 17. Qb3 {[%clk 0:02:02.1]} 17... b6 {[%clk
0:02:21.2]} 18. Bd5 {[%clk 0:02:00.4]} 18... Rb8 {[%clk 0:02:17.5]} 19. Bc6
{[%clk 0:01:51.1]} 19... Qe7 {[%clk 0:01:59.1]} 20. Rae1 {[%clk 0:01:49.2]}
20... Qe5 {[%clk 0:01:58]} 21. f4 {[%clk 0:01:37.4]} 21... Qc5 {[%clk
0:01:57.9]} 22. Bd5 {[%clk 0:01:37.8]} 22... c6 {[%clk 0:01:57.7]} 23. Be6
{[%clk 0:01:37.8]} 23... Re8 {[%clk 0:01:55.5]} 24. f5 {[%clk 0:01:37.7]} 24...
gxf5 {[%clk 0:01:54.4]} 25. exf5 {[%clk 0:01:37.5]} 25... Ng4 {[%clk 0:01:49.2]}
26. Qf3 {[%clk 0:01:30.5]} 26... Ne5 {[%clk 0:01:37]} 27. Qg3 {[%clk 0:01:20.7]}
27... Bf6 {[%clk 0:01:36.3]} 28. b3 {[%clk 0:01:14.6]} 28... a5 {[%clk
0:01:35.3]} 29. Kh1 {[%clk 0:01:14.6]} 29... d3 {[%clk 0:01:29.5]} 30. Rxe5
{[%clk 0:01:05.6]} 30... Qxe5 {[%clk 0:01:26.3]} 31. Qxd3 {[%clk 0:01:05.7]}
31... Qd4 {[%clk 0:01:19.5]} 32. Qxd4 {[%clk 0:00:55.5]} 32... Bxd4 {[%clk
0:01:18.9]} 33. Bd7 {[%clk 0:00:55.9]} 33... Re2 {[%clk 0:01:17.3]} 34. f6
{[%clk 0:00:37]} 34... Rf2 {[%clk 0:01:11.4]} 35. Rxf2 {[%clk 0:00:36.3]} 35...
Bxf2 {[%clk 0:01:12.3]} 36. Bxc6 {[%clk 0:00:31.7]} 36... Kg8 {[%clk 0:01:10.2]}
37. Bd5+ {[%clk 0:00:31.5]} 37... Kf8 {[%clk 0:01:10.2]} 38. g3 {[%clk
0:00:29.8]} 38... Bd4 {[%clk 0:01:08.6]} 39. f7 {[%clk 0:00:30.4]} 39... Bc5
{[%clk 0:01:04.6]} 40. Kg2 {[%clk 0:00:30.6]} 40... Ke7 {[%clk 0:00:59.9]} 41.
Kf3 {[%clk 0:00:31]} 41... Bd4 {[%clk 0:01:00.3]} 42. Kg4 {[%clk 0:00:31.3]}
42... Bg7 {[%clk 0:01:00.8]} 43. Kh5 {[%clk 0:00:31.2]} 43... Kf6 {[%clk
0:01:00.9]} 44. h4 {[%clk 0:00:27.8]} 44... Kf5 {[%clk 0:00:55.5]} 45. g4+
{[%clk 0:00:28.1]} 45... Kf6 {[%clk 0:00:55.7]} 46. Be4 {[%clk 0:00:17.5]} 46...
h6 {[%clk 0:00:51.7]} 47. Bd5 {[%clk 0:00:17.5]} 47... Bf8 {[%clk 0:00:49.1]}
48. g5+ {[%clk 0:00:17.1]} 48... hxg5 {[%clk 0:00:49]} 49. hxg5+ {[%clk
0:00:17.5]} 49... Kg7 {[%clk 0:00:48.4]} 50. Be6 {[%clk 0:00:16.4]} 50... Be7
{[%clk 0:00:48.2]} 51. g6 {[%clk 0:00:15.6]} 51... Bf6 {[%clk 0:00:44]} 52. Bd5
{[%clk 0:00:15.5]} 52... Be7 {[%clk 0:00:43.7]} 53. Be4 {[%clk 0:00:16]} 53...
Bf8 {[%clk 0:00:41.7]} 54. Kg4 {[%clk 0:00:16.3]} 54... Kf6 {[%clk 0:00:41.7]}
55. Kf3 {[%clk 0:00:16.6]} 55... Ke5 {[%clk 0:00:39.5]} 56. Ke3 {[%clk
0:00:16.9]} 56... Bh6+ {[%clk 0:00:39.5]} 57. Kd3 {[%clk 0:00:17.1]} 57... Bg7
{[%clk 0:00:39]} 58. Bc6 {[%clk 0:00:15]} 58... Kf5 {[%clk 0:00:37.5]} 59. Be4+
{[%clk 0:00:14.9]} 59... Kf4 {[%clk 0:00:35.3]} 60. a3 {[%clk 0:00:11.2]} 60...
Bf8 {[%clk 0:00:31.3]} 61. Kd4 {[%clk 0:00:08.5]} 61... Kg5 {[%clk 0:00:17.3]}
62. Kd5 {[%clk 0:00:07.7]} 62... Kf6 {[%clk 0:00:17.7]} 63. Kc6 {[%clk
0:00:06.1]} 63... d5 {[%clk 0:00:16.4]} 64. cxd5 {[%clk 0:00:06.3]} 64... Bxa3
{[%clk 0:00:15.8]} 65. Kxb6 {[%clk 0:00:06.2]} 65... Ke7 {[%clk 0:00:15]} 66.
Kc6 {[%clk 0:00:06]} 66... Bb4 {[%clk 0:00:14.7]} 67. Kb5 {[%clk 0:00:05.7]}
67... Kf8 {[%clk 0:00:13.4]} 68. Kc6 {[%clk 0:00:05.3]} 68... Ke7 {[%clk
0:00:13.7]} 69. Bd3 {[%clk 0:00:05.6]} 69... Ba3 {[%clk 0:00:12]} 70. Bf5 {[%clk
0:00:05]} 70... Bb4 {[%clk 0:00:11.5]} 71. Be6 {[%clk 0:00:05.3]} 71... Ba3
{[%clk 0:00:11.3]} 72. g7 {[%clk 0:00:05.5]} 1-0

[Event "Late-Titled-Tuesday-Blitz-April-02-2024"]
[Site "Chess.com"]
[Date "2024.04.02"]
[Round "6"]
[White "giomar27"]
[Black "chucksterf10"]
[Result "1-0"]
[WhiteElo "2493"]
[BlackElo "2642"]
[TimeControl "180+1"]
[EndTime "15:05:22 PDT"]
[Termination "giomar27 won by resignation"]

1. Nc3 {[%clk 0:03:00.9]} 1... h6 {[%clk 0:03:00.9]} 2. e4 {[%clk 0:03:00.2]}
2... c5 {[%clk 0:03:00.5]} 3. Nf3 {[%clk 0:02:58]} 3... Nc6 {[%clk 0:03:00.3]}
4. d4 {[%clk 0:02:57.8]} 4... cxd4 {[%clk 0:03:00.4]} 5. Nxd4 {[%clk 0:02:58.7]}
5... Nf6 {[%clk 0:02:59.8]} 6. Nxc6 {[%clk 0:02:56.7]} 6... bxc6 {[%clk
0:03:00.7]} 7. e5 {[%clk 0:02:57.3]} 7... Ng8 {[%clk 0:02:53.6]} 8. Bc4 {[%clk
0:02:57.2]} 8... g6 {[%clk 0:02:47]} 9. Qf3 {[%clk 0:02:54]} 9... e6 {[%clk
0:02:42.3]} 10. Bf4 {[%clk 0:02:49.4]} 10... Rb8 {[%clk 0:02:32.5]} 11. Bb3
{[%clk 0:02:48.9]} 11... Bb4 {[%clk 0:02:05]} 12. O-O {[%clk 0:02:47.9]} 12...
Bxc3 {[%clk 0:02:04.5]} 13. Qxc3 {[%clk 0:02:47.6]} 13... Ne7 {[%clk 0:02:04.7]}
14. Qd2 {[%clk 0:02:36.6]} 14... Nd5 {[%clk 0:02:03.8]} 15. Bg3 {[%clk
0:02:36.6]} 15... Ba6 {[%clk 0:02:00.8]} 16. Rfe1 {[%clk 0:02:33.9]} 16... h5
{[%clk 0:02:00.4]} 17. c4 {[%clk 0:02:32.6]} 17... Ne7 {[%clk 0:01:58.8]} 18.
Bh4 {[%clk 0:02:31.9]} 18... Qc7 {[%clk 0:01:48.6]} 19. Bf6 {[%clk 0:02:31.2]}
19... Rg8 {[%clk 0:01:48.4]} 20. Rad1 {[%clk 0:02:04]} 20... Nf5 {[%clk
0:01:46.1]} 21. h3 {[%clk 0:02:02.3]} 21... h4 {[%clk 0:01:39.7]} 22. Qf4 {[%clk
0:02:00.9]} 22... Rb4 {[%clk 0:01:36.4]} 23. Bxh4 {[%clk 0:01:50.6]} 23... Nxh4
{[%clk 0:01:35.8]} 24. Qxh4 {[%clk 0:01:51.5]} 24... Qd8 {[%clk 0:01:17.3]} 25.
Qd4 {[%clk 0:01:49.2]} 25... Rb7 {[%clk 0:01:03.4]} 26. Rd2 {[%clk 0:01:49.5]}
26... Qe7 {[%clk 0:01:02.4]} 27. Red1 {[%clk 0:01:49.4]} 27... c5 {[%clk
0:00:58.9]} 28. Qd3 {[%clk 0:01:44.8]} 28... Rh8 {[%clk 0:00:55.4]} 29. Ba4
{[%clk 0:01:43.9]} 29... Kf8 {[%clk 0:00:51.4]} 30. Qd6 {[%clk 0:01:37.7]} 30...
Qxd6 {[%clk 0:00:50.2]} 31. Rxd6 {[%clk 0:01:37.5]} 31... Bxc4 {[%clk
0:00:50.3]} 32. Rxd7 {[%clk 0:01:33.3]} 32... Rxd7 {[%clk 0:00:48.1]} 33. Rxd7
{[%clk 0:01:33.2]} 33... Bxa2 {[%clk 0:00:39.3]} 34. Rxa7 {[%clk 0:01:30.5]}
34... Kg7 {[%clk 0:00:38.3]} 35. Rc7 {[%clk 0:01:22.5]} 35... Rh4 {[%clk
0:00:36.3]} 36. Be8 {[%clk 0:01:21.1]} 36... Rf4 {[%clk 0:00:27.9]} 37. Rxc5
{[%clk 0:01:17.7]} 37... g5 {[%clk 0:00:26.1]} 38. Bc6 {[%clk 0:01:03.6]} 38...
Bb1 {[%clk 0:00:24.6]} 39. Rc1 {[%clk 0:00:58.7]} 39... Bf5 {[%clk 0:00:24.1]}
40. Rc3 {[%clk 0:00:42.2]} 40... Rb4 {[%clk 0:00:24.1]} 41. b3 {[%clk
0:00:41.6]} 41... Rb6 {[%clk 0:00:22.8]} 42. g4 {[%clk 0:00:38.5]} 42... Bb1
{[%clk 0:00:22.4]} 43. Kf1 {[%clk 0:00:36.4]} 43... Ba2 {[%clk 0:00:22.6]} 44.
Ba4 {[%clk 0:00:35.7]} 44... Rb4 {[%clk 0:00:23.2]} 45. f3 {[%clk 0:00:30.9]}
45... Kf8 {[%clk 0:00:22.1]} 46. Ke2 {[%clk 0:00:30]} 46... Ke7 {[%clk 0:00:19]}
47. Kd2 {[%clk 0:00:30.3]} 47... Bb1 {[%clk 0:00:17.9]} 48. Rc7+ {[%clk
0:00:30.3]} 48... Kf8 {[%clk 0:00:15]} 49. Rc4 {[%clk 0:00:30.7]} 49... Rb8
{[%clk 0:00:13.8]} 50. Kc3 {[%clk 0:00:29.5]} 50... Rd8 {[%clk 0:00:12.5]} 51.
Bc6 {[%clk 0:00:27.1]} 51... Rd3+ {[%clk 0:00:12.1]} 52. Kb4 {[%clk 0:00:26.8]}
52... Ba2 {[%clk 0:00:10.9]} 53. Rc3 {[%clk 0:00:25.4]} 53... Rd4+ {[%clk
0:00:11.4]} 54. Ka3 {[%clk 0:00:25.4]} 54... Bb1 {[%clk 0:00:11.7]} 55. Kb2
{[%clk 0:00:25.6]} 55... Bd3 {[%clk 0:00:10.7]} 56. Rc1 {[%clk 0:00:14.6]} 56...
Be2 {[%clk 0:00:10.4]} 57. Rc2 {[%clk 0:00:13.9]} 57... Bd1 {[%clk 0:00:10.3]}
58. Rc1 {[%clk 0:00:11.5]} 58... Rd3 {[%clk 0:00:10.1]} 59. Rc3 {[%clk
0:00:10.8]} 59... Rd2+ {[%clk 0:00:10.2]} 60. Ka3 {[%clk 0:00:11.3]} 60... Ke7
{[%clk 0:00:09.7]} 61. Be4 {[%clk 0:00:10]} 61... Rh2 {[%clk 0:00:06.9]} 62. b4
{[%clk 0:00:09.8]} 62... Rxh3 {[%clk 0:00:07.3]} 63. b5 {[%clk 0:00:10]} 63...
Rh8 {[%clk 0:00:05.5]} 64. Kb4 {[%clk 0:00:09.7]} 64... Be2 {[%clk 0:00:04.7]}
65. b6 {[%clk 0:00:09.9]} 65... Rb8 {[%clk 0:00:05.2]} 66. b7 {[%clk 0:00:10]}
66... Ba6 {[%clk 0:00:05.8]} 67. Rc7+ {[%clk 0:00:08.9]} 67... Kd8 {[%clk
0:00:03.1]} 68. Rxf7 {[%clk 0:00:08.7]} 68... Ke8 {[%clk 0:00:03]} 69. Rh7
{[%clk 0:00:08.5]} 69... Kd8 {[%clk 0:00:03.9]} 70. Ka5 {[%clk 0:00:08.5]} 70...
Bc4 {[%clk 0:00:03.6]} 71. Kb6 {[%clk 0:00:08.6]} 1-0